Cogmind - Beta 15 @@@ ROGUE MODE // 2025.06.08 @ 03:51:17 Player: Zaros426 Result: Destroyed by VM-X92(R) with Subdweller Machine Gun Performance ------------- Evolutions (0) 0 Regions Visited (3) 600 Robots Destroyed (51) 255 Value Destroyed (1029) 1029 Prototype IDs (5) 100 Alien Tech Used (0) 0 Bonus (60) 60 TOTAL SCORE: 2044 Bonus ------- Follower Combat Kills 60 Cogmind --------- Core Integrity 0/250 Matter 282/300 Energy 147/200 System Corruption 0% Temperature Warm (152) Movement Rolling (120) Ox1 Location -10/Subcaves Parts ------- > --- POWER (1) -------- Subdweller Power Source > --- PROPULSION (2) --- Subdweller Monowheel Subdweller Monowheel > --- UTILITY (2) ------ Light Armor Plating Gun Armor > --- WEAPON (2+2) ----- Beam Rifle (+) Beam Rifle (+) Beam Cannon Subdweller Machine Gun > --- INVENTORY (5) ---- Subdweller Monowheel Subdweller Monowheel Improved Heat Sink Subdweller Shrapnel Launcher Mining Laser Peak State ------------ > --- POWER ------------ Subdweller Power Source > --- PROPULSION ------- Subdweller Monowheel Subdweller Monowheel > --- UTILITY ---------- Improved Heat Sink Gun Armor > --- WEAPON ----------- Beam Rifle Beam Rifle Beam Rifle Beam Cannon > --- INVENTORY -------- ECM Suite Light Armor Plating Grenade Launcher [Rating: 25] Favorites ----------- Power Subdweller Power Source Engine Subdweller Power Source Propulsion Subdweller Monowheel Treads Light Treads Wheel Subdweller Monowheel Utility Large Storage Unit Device Seismic Detector Storage Large Storage Unit Protection Light Armor Plating Weapon Beam Rifle Energy Gun Beam Rifle Energy Cannon Beam Cannon Ballistic Gun Subdweller Machine Gun Launcher Grenade Launcher Special Weapon Mining Laser Build | -11 -10 -10 -10 ------- Run | Yrd Mat Min Sub Slots Evolved . | . . . . Power . | . . . . Propulsion . | . . . . Utility . | . . . . Weapon . | . . . . Parts Attached 36 | 8 12 . 16 Power 3 | 1 1 . 1 Engine 3 | 1 1 . 1 Core . | . . . . Reactor . | . . . . Propulsion 9 | 2 2 . 5 Treads 2 | 2 . . . Leg . | . . . . Wheel 7 | . 2 . 5 Hover . | . . . . Flight . | . . . . Utility 10 | 2 3 . 5 Device 2 | 1 . . 1 Storage 3 | 1 2 . . Processor . | . . . . Hackware . | . . . . Protection 5 | . 1 . 4 Artifact . | . . . . Weapon 14 | 3 6 . 5 Energy Gun 7 | 2 3 . 2 Energy Cannon 1 | . 1 . . Ballistic Gun 3 | 1 1 . 1 Ballistic Cannon . | . . . . Launcher 2 | . . . 2 Special Weapon 1 | . 1 . . Impact Weapon . | . . . . Slashing Weapon . | . . . . Piercing Weapon . | . . . . Special Melee Weapon . | . . . . Unidentified Prototypes 1 | . . . 1 Parts Lost 10 | . 7 . 3 Power 1 | . 1 . . Propulsion 1 | . 1 . . Utility 3 | . 1 . 2 Weapon 5 | . 4 . 1 Highest Loss Streak 3 | . 3 . 3 To Critical Strikes . | . . . . Average Backups 7 | 1 7 14 6 Power . | . . . . Propulsion . | . . . 1 Utility 3 | . 4 8 2 Weapon 3 | 1 3 5 2 Tool/Special . | . . . . Unused Backups 7 | . . 1 6 Power . | . . . . Propulsion . | . . . . Utility 5 | . . 1 4 Weapon 1 | . . . 1 Tool/Special 1 | . . . 1 Average Slot Usage (%) 96 | . 91 100 99 Engine 12 | . 13 14 11 Treads 7 | . 19 . . Wheel 18 | . 8 28 22 Device 4 | . 6 . 3 Storage 8 | . 14 14 1 Protection 10 | . . 14 17 Energy Gun 20 | . 17 27 21 Energy Cannon 3 | . 4 . 3 Ballistic Gun 6 | . 4 . 9 Launcher 1 | . . . 2 Special Weapon 3 | . 1 . 4 Peak Build Rating 25 | 7 11 11 25 Average Rating 14 | 5 7 10 22 On Entrance 7 | . 7 11 10 Naked Turns . | . . . . Heaviest Build 34 | 13 34 34 34 Greatest Support 40 | 40 40 20 40 Greatest Overweight (x) 3 | . 2 1 3 Average Overweight (x) . | . . 1 . Largest Inventory Capacity 15 | 8 15 15 15 Average Capacity 10 | 7 14 15 6 Most Carried 15 | 3 15 15 15 Average Carried 7 | 1 7 14 6 Final Capacity 15 | 8 15 15 5 Final Carried 15 | 3 14 15 5 Class Distribution -------------------- 55% | Mutant 16% | Tank 12% | Gunner 9% | Scavenger-Tank 3% | Scavenger-Mutant 3% | Scavenger-Gunner Dominant Class ---------------- Mutant | -10/Materials Mutant | -10/Mines Tank | -10/Subcaves Resources | -11 -10 -10 -10 ----------- Run | Yrd Mat Min Sub Matter Collected 1058 | 316 252 10 480 Remotely . | . . . . Salvage Created 1595 | 188 849 266 292 Parts 119 | 18 59 11 31 Haulers Intercepted 2 | . 2 . . Recyclers Shooed . | . . . . Parts Field Recycled . | . . . . Retrieved Matter . | . . . . Parts Self-Destructed 5 | . . . 5 Prevented . | . . . . Kills | -11 -10 -10 -10 ------- Run | Yrd Mat Min Sub Combat Hostiles Destroyed 28 | . 16 4 8 Guns 18 | . 12 3 3 Cannons 5 | . 4 . 1 AOE 3 | . . . 3 Classes Destroyed 11 | 3 5 1 2 Worker 7 | 1 5 1 . Tunneler 8 | 5 2 1 . Hauler 2 | . 2 . . Recycler 2 | 1 . 1 . Operator 1 | . 1 . . Watcher 3 | . 3 . . Swarmer 6 | . 6 . . Grunt 14 | . 10 3 1 Sentry 1 | . . . 1 Subdweller 7 | . . . 7 Assembled 1 | . . 1 . Best Kill Streak 7 | 5 7 2 4 Combat Bots Only 4 | . 3 1 4 Max Kills in Single Turn 2 | 2 2 1 1 Gunslinging . | . . . . Exploded 1 | . . . 1 Melee . | . . . . Uniques/NPCs Destroyed . | . . . . Combat | -11 -10 -10 -10 -------- Run | Yrd Mat Min Sub Hostile Shots Fired 143 | . 90 13 40 Missed 37 | . 21 4 12 Hits 106 | . 69 9 28 Projectile 106 | . 69 9 28 AOE 2 | . . . 2 Critical Strikes 2 | . . 1 1 Damage Taken 1813 | . 857 125 831 Core 265 | . 108 . 157 Absorbed by Shields . | . . . . Core Remaining (%) 100 | 100 . . . Volleys Fired 179 | 12 87 22 58 Largest 4 | 2 2 2 4 Hottest 202 | 70 112 112 202 Shots Fired 308 | 24 151 41 92 Gun 197 | 24 96 38 39 Cannon 50 | . 36 . 14 Launcher 18 | . . . 18 Special 43 | . 19 3 21 Kinetic 60 | 12 39 . 9 Thermal 207 | 12 89 41 65 Explosive 18 | . . . 18 Electromagnetic 23 | . 23 . . Robot Hit Streak 13 | 13 7 5 12 Robot Miss Streak 4 | 1 4 4 2 Penetration Max . | . . . . Secondary Targets 3 | . 3 . . Max Gunslinging Chain 1 | . 1 . . Shots Hit Robots 157 | 17 73 23 44 Core Hits 68 | 8 36 10 14 Critical Kills 1 | . . . 1 Critical Parts Destroyed . | . . . . Critical Strikes 6 | 1 1 2 2 Burn 5 | 1 1 2 1 Meltdown 1 | . . . 1 Melee Attacks . | . . . . Impact . | . . . . Slashing . | . . . . Piercing . | . . . . Sneak Attacks . | . . . . Combat Hostiles . | . . . . Follow-up Attacks . | . . . . Damage Inflicted 2777 | 216 1177 334 1050 Guns 1806 | 216 792 334 464 Cannons 576 | . 351 . 225 Explosions 395 | . 34 . 361 Melee . | . . . . Ramming . | . . . . Kinetic 656 | 155 342 . 159 Thermal 1556 | 61 631 334 530 Explosive 361 | . . . 361 Electromagnetic 204 | . 204 . . Impact . | . . . . Slashing . | . . . . Piercing . | . . . . Highest Corruption . | . . . . Average Corruption . | . . . . Corruption Purged . | . . . . Corruption Blocked . | . . . . Overload Shots . | . . . . Overflow Damage . | . . . . Projectiles . | . . . . Explosions . | . . . . Melee . | . . . . Knockbacks . | . . . . Impact . | . . . . Kinetic . | . . . . Secondary . | . . . . Self-Inflicted Damage 152 | . 40 . 112 Shots 7 | . 1 . 6 Rammed . | . . . . Targets Rammed . | . . . . Kicked . | . . . . Crushed . | . . . . Highest Temperature 423 | 45 254 423 159 Average Temperature 73 | 16 67 105 80 Received Heat Transfer 542 | . 351 98 93 Effects 3 | . 1 2 . Energy Bleed 1 | . 1 . . Damage (minor) 2 | . . 2 . Siege Activations . | . . . . Martial Activations . | . . . . Shielding Activations . | . . . . Robots Disrupted . | . . . . Combat Hostiles . | . . . . Robots Corrupted . | . . . . Combat Hostiles . | . . . . Parts Fried 1 | . 1 . . Impact Corruptions . | . . . . Robots Melted 2 | . . 1 1 Combat Hostiles 2 | . . 1 1 Parts Melted 5 | . 1 3 1 Heat Transferred 4120 | 259 1530 999 1332 Parts Sabotaged . | . . . . Parts Stolen . | . . . . Parts Stripped . | . . . . Power Chain Reactions 1 | . 1 . . Alert | -11 -10 -10 -10 ------- Run | Yrd Mat Min Sub Maximum Alert Level . | . . . . Low Security (%) 100 | 100 100 100 . Level 1 . | . . . . Level 2 . | . . . . Level 3 . | . . . . Level 4 . | . . . . Level 5 . | . . . . High Security . | . . . . Max Security . | . . . . Peak Influence 173 | 10 173 50 . Initial 45 | . . 45 . Average 49 | 2 70 12 . Influence Increases 797 | 35 614 128 20 Destroy 0b10 Robot/C 400 | . 320 60 20 Destroy 0b10 Robot/NC 115 | 35 65 15 . Destroy Leader 100 | . 80 20 . Allied During Kill 13 | . . 13 . Successful Hack 45 | . 40 5 . Select Force Hacks 60 | . 60 . . Disable Machine 30 | . 30 . . Destroy Structure 19 | . 19 . . Lose Combat Pursuer 15 | . . 15 . Influence Decreases 797 | 35 498 244 20 Entered New Map 71 | . . 71 . Time Decay 656 | 35 428 173 20 Lost Part 70 | . 70 . . Squads Dispatched 5 | . 5 . . Investigation 3 | . 3 . . Extermination . | . . . . Reinforcement 2 | . 2 . . Assault . | . . . . Garrison . | . . . . Intercept . | . . . . Searches Triggered . | . . . . Construction Impeded . | . . . . Haulers Reinforced . | . . . . Active Scanning Responses . | . . . . Cargo Convoy Interrupts . | . . . . Stealth | -11 -10 -10 -10 --------- Run | Yrd Mat Min Sub Distress Signals 2 | . . 2 . Communications Jammed . | . . . . Distress Signals . | . . . . Times Spotted 43 | . 26 5 12 Peak Tracking Total 4 | . 4 2 4 Tactical Retreats 1 | . . 1 . Traps | -11 -10 -10 -10 ------- Run | Yrd Mat Min Sub Traps Triggered 3 | . 2 . 1 Indirectly . | . . . . Trap Hack Attempts . | . . . . Triggered . | . . . . Disarmed . | . . . . Reprogrammed . | . . . . Reused . | . . . . Traps Extracted . | . . . . Installed . | . . . . Triggered . | . . . . Machines | -11 -10 -10 -10 ---------- Run | Yrd Mat Min Sub Machines Disabled 2 | . 2 . . Max in Single Turn 1 | . 1 . . Machines Repaired . | . . . . Machines Dismantled . | . . . . Machines Sabotaged . | . . . . Overloaded Fab Kills . | . . . . Hacking | -11 -10 -10 -10 --------- Run | Yrd Mat Min Sub Machines Accessed 10 | . 8 1 1 Terminals 7 | . 6 1 . Fabricators . | . . . . Repair Stations . | . . . . Recycling Units 2 | . 2 . . Scanalyzers . | . . . . Garrison Access . | . . . . Total Hacks 28 | . 24 1 3 Successful 20 | . 16 1 3 Failed 8 | . 8 . . Catastrophic . | . . . . Database Lockouts . | . . . . Manual 17 | . 16 1 . Terminals 22 | . 21 1 . Fabricators . | . . . . Repair Stations . | . . . . Recycling Units 3 | . 3 . . Scanalyzers . | . . . . Garrison Access . | . . . . Terminal Hacks 11 | . 7 1 3 Record 3 | . . . 3 Robot Analysis 2 | . 2 . . Prototype ID Bank 2 | . 2 . . Terminal Index 1 | . 1 . . Locate Traps 2 | . 2 . . Zone Layout 1 | . . 1 . Fabricator Hacks . | . . . . Repair Station Hacks . | . . . . Recycling Unit Hacks . | . . . . Scanalyzer . | . . . . Garrison Access Hacks . | . . . . Unauthorized Hacks 9 | . 9 . . Terminals 7 | . 7 . . Botnet 1 | . 1 . . Operators 1 | . 1 . . Skim 5 | . 5 . . Fabricators . | . . . . Repair Stations . | . . . . Recycling Units 2 | . 2 . . Tunnel 2 | . 2 . . Scanalyzers . | . . . . Garrison Access . | . . . . Data Cores Recovered . | . . . . Used . | . . . . Hacking Detections 6 | . 5 1 . Full Trace Events . | . . . . Feedback Events . | . . . . Feedback Blocked . | . . . . Robot Schematics Acquired . | . . . . Robots Built . | . . . . Authchips . | . . . . Time . | . . . . Total Robot Build Rating . | . . . . Part Schematics Acquired . | . . . . Parts Built . | . . . . Authchips . | . . . . Time . | . . . . Total Part Build Rating . | . . . . Parts Repaired . | . . . . Time . | . . . . Parts Recycled . | . . . . Recycled Matter . | . . . . Retrieved Matter . | . . . . Retrieved Components . | . . . . Parts Scanalyzed . | . . . . Part Schematics Acquired . | . . . . Parts Damaged . | . . . . Bothacking | -11 -10 -10 -10 ------------ Run | Yrd Mat Min Sub Used RIF Installer . | . . . . Robots Hacked . | . . . . Non-combat . | . . . . Combat . | . . . . Robot Hacks Applied . | . . . . Relay Couplers Released . | . . . . Fabnet Peak Effective % . | . . . . Robots Rewired . | . . . . Allies Hacked . | . . . . Hacks Repelled . | . . . . Allies | -11 -10 -10 -10 -------- Run | Yrd Mat Min Sub Total Allies 3 | . . 3 . Largest Group 3 | . . 3 3 Highest-Rated Group 40 | . . 40 40 Highest-Rated Ally 16 | . . 16 16 Total Orders . | . . . . Ally Attacks 20 | . . 4 16 Total Damage 238 | . . 66 172 Kills 4 | . . 2 2 Allies Corrupted . | . . . . Allies Melted . | . . . . Intel | -11 -10 -10 -10 ------- Run | Yrd Mat Min Sub Active Infowar (turns) 738 | 76 662 . . Seismic 738 | 76 662 . . Robot Analysis Total 2 | . 2 . . Derelict Logs Recovered 3 | . . 1 2 Drone Launches . | . . . . Drone Recoveries . | . . . . Exploration | -11 -10 -10 -10 ------------- Run | Yrd Mat Min Sub Turns Passed 4124 | 167 1443 632 1882 Spaces Moved 2770 | 75 778 532 1385 Core 3 | 3 . . . Treads 487 | 72 415 . . Legs . | . . . . Wheels 2280 | . 363 532 1385 Hover . | . . . . Flight . | . . . . Fastest Speed 50 | 50 95 95 95 Average Speed 116 | 155 131 95 115 Slowest Speed 240 | 160 240 95 125 Overloaded Moves . | . . . . Propulsion Burnouts . | . . . . Robots Hopped . | . . . . Potential Cave-ins . | . . . . Cave-ins Triggered . | . . . . Exploration Rate (%) 67 | 5 95 97 74 Regions Visited 3 Branch Regions 2 Pre-discovered Areas 9 | . 5 . 4 Known Exits Taken 1 | . 1 . . Unknown Exits Taken 2 | 1 . 1 . Scrap Searched 2 | . . 1 1 Spaces Dug 17 | . 12 . 5 Terrain Destroyed 112 | . 19 . 93 Melee . | . . . . Projectile 14 | . 14 . . AOE 98 | . 5 . 93 Terrain Rammed . | . . . . Walls Destroyed . | . . . . Machines Disabled . | . . . . Actions | -11 -10 -10 -10 --------- Run | Yrd Mat Min Sub Total 3261 | 97 1004 611 1549 Wait 212 | . 100 54 58 Move 2767 | 74 777 531 1385 Hop . | . . . . Pick Up 28 | 3 17 2 6 Fast Attach 18 | 7 5 . 6 Attach 10 | . 5 . 5 Detach . | . . . . Swap 29 | 1 8 1 19 Drop 18 | . 5 1 12 Fire 179 | 12 87 22 58 Melee . | . . . . Ram . | . . . . Kick . | . . . . Crush . | . . . . Escape Stasis . | . . . . Rewire . | . . . . Trap . | . . . . Miscellaneous . | . . . . Route ------- -11/Scrapyard -10/Materials (discovered 4 exits: *Mat x3 / *Min) -10/Mines (discovered 3 exits: *Mat x2 / *Sub) -10/Subcaves (discovered 2 exits: *Mat x2) History --------- Turn | Location | Event 8 | -11/Scrapyard | Discovered new exit (range 16) 168 | -11/Scrapyard | Entered Materials 310 | -10/Materials | Build established: Mutant 734 | -10/Materials | Discovered new exit (range 16) 851 | -10/Materials | Lost 3 parts (1p2w) 1204 | -10/Materials | Learned 2 Mines zone layouts 1238 | -10/Materials | Discovered new exit (range 14) 1268 | -10/Materials | Learned 2 Mines zone layouts 1323 | -10/Materials | Learned location of Mines (-9) 1370 | -10/Materials | Learned location of Subcaves (-10) 1409 | -10/Materials | Learned Storage emergency access door positions 1455 | -10/Materials | Learned 4 Subcaves zone layouts 1483 | -10/Materials | Identified exit to Mines 1501 | -10/Materials | Discovered new exit (range 15) 1611 | -10/Materials | Entered Mines 1612 | -10/Mines | Assembled infested the area 1612 | -10/Mines | Identified exit to Materials 1614 | -10/Mines | Assisted by bots powering up and referring to "LRC-V3" 1925 | -10/Mines | Learned Materials terminal intel 2087 | -10/Mines | Received a Rocket Launcher from a helpful Derelict 2114 | -10/Mines | Discovered exit to Materials (range 9) 2235 | -10/Mines | Discovered new exit (range 3) 2243 | -10/Mines | Entered Subcaves 2243 | -10/Subcaves | Accompanied by 3 allies 2244 | -10/Subcaves | Identified exit to Materials 2255 | -10/Subcaves | Learned location of Mines (-8) 2373 | -10/Subcaves | Shifting Twisted Machinery released Sub. Monowheel 2433 | -10/Subcaves | A Subdweller sparked back to life 2433 | -10/Subcaves | A Subdweller sparked back to life 2433 | -10/Subcaves | A Subdweller sparked back to life 2434 | -10/Subcaves | Core integrity fell below 50% 2448 | -10/Subcaves | Ambushed by Subdweller buried in earth 2469 | -10/Subcaves | Core integrity fell below 20% 2474 | -10/Subcaves | Found Prototype Protection 2477 | -10/Subcaves | Identified Gun Armor 2478 | -10/Subcaves | Attached Gun Armor, gained temporary slots: Weapon x2 2481 | -10/Subcaves | Lost 3 parts (2u1w) 2682 | -10/Subcaves | Discovered exit to Materials (range 4) 2686 | -10/Subcaves | Shifting Twisted Machinery released Shrapnel Trap 2891 | -10/Subcaves | Build established: Gunner 3087 | -10/Subcaves | Shifting Twisted Machinery released Sub. Power Source 3088 | -10/Subcaves | Shifting Twisted Machinery released Sub. Monowheel 3373 | -10/Subcaves | Shifting Twisted Machinery released Sub. Shrapnel Launcher 3388 | -10/Subcaves | Learned location of Storage (-8) 3406 | -10/Subcaves | Build established: Tank 3438 | -10/Subcaves | Curiously followed by a Cobbler waking with a query about "LVR3C" 3725 | -10/Subcaves | Build established: Scavenger-Tank 3727 | -10/Subcaves | Visited Clippyterm 3731 | -10/Subcaves | Learned location of Extension (-5) 3976 | -10/Subcaves | Learned location of Zion (-7) 3976 | -10/Subcaves | Met a Zionite searching for "candidates" 4120 | -10/Subcaves | Build established: Tank 4125 | -10/Subcaves | Destroyed by VM-X92(R) with Subdweller Machine Gun Last Messages --------------- 03737_ 64-SHE(O) puts together Sub. Shrapnel Launcher. 03740_ 64-SHE(O) collects matter. 03743_ Acquired 12 matter. 03764_ Dropped Grenade Launcher. 03765_ Acquired Sub. Shrapnel Launcher. 03832_ Y-45 Defender destroyed. 03835_ Acquired 49 matter. 03838_ Lgt. Treads fries itself beyond repair. 03839_ Hvy. Assault Rifle fries itself beyond repair. 03851_ Acquired 47 matter. 03880_ DF-7Y0(R) destroyed. 03885_ Acquired 26 matter. 03900_ 49-499(R) suffers critical hit (Meltdown). 03900_ Sub. Optics melted. 03902_ 64-SHE(O) collects matter. 03912_ 64-SHE(O) puts together Barrage Gun. 03974_ CR-H4C(z): "She is not going to be happy we haven't found any suitable candidates yet." 03976_ CR-H4C(z): "Hey you! It's really dangerous down here, I feel that you could die at any moment. For your health and safety might I suggest a trip to Zion?" World map updated: -7/Zion. 04123_ VM-X92(R) suffers critical hit (Burn). Map ----- +----------------------------------------------------+ | ??????????????????????????????????????????????? | | ??????????????????????????????????????????????? | | ??????????????????????????????????????????????? | | ??????????????????????????????????????????????? | | ??????????????????????????????????????????????? | | ??????????????????????????????????????????????? | | ??????????????????????????????????????????????? | | ??????????????????????????????????????????????? | | ??????????????????????????????????????????????? | | ??????????????????????????????????????????????? | | ??????????????????????????????????????????????? | | ??????????????????????????????????????????????? | | ??????????????????????????????????????????????? | | ??????????????????????????????????????????????? | | ??????????????????????????????????????????????? | | ??????????????????????????????????????????????? | | ???????????????????????????????????????????? | | ???????????????????????????????????????????? | | ??????????????????# ???????????????????????# | | ????????????????###""???????##????????????# | | ???????????????## ""####??? ##?????###### | | ???????????????# ""# #??# ##????? ? | | ???????????????# ""RR ##? ##????? ? | | ????????????????# "" ## #????? ?? | | ?????????????????#"" #??????? ??? | | ?????????????????# @ #????##?# #??? | | ????????????????## ##???## ## #??? | | ????????????????# #????# #??? | | ????????????????# #????# #?## | | ????????????????###### ###?????# ### | | ????????????????###??# O #???##### | | ???????????????## #??## ##??# | | ???????????????# ##??# ##?# | | ???????????????# ##### ### # | | ??????????????## ### # ## | | ??????????????# ## # #### | | ??????????????# ### ##??? | | ??????????????# ## ####### #??? | | ??????????????##?## ## ##??## #??? | | ??????????????????# #### #### #??? | | ??????????????????# #??## ## #??? | | ?????????????????# #???## ##??? | | ?????????????????# #????## ###???? | | ?????????????????# #?????## ## ##?##### | | ?????????????????### ##??????##### ##??# | | ???????????????????####??????####### ##??## | | ?????????????????????????????# #?# ##??## | | ?????????????????????????????# ### ##### | | ?????????????????????????????# | | ?????????????????????????????# | +----------------------------------------------------+ Best States ------------- Heat Dissipation 39 Energy Generation 10 Energy Capacity 250 Matter Stores 300 Matter Capacity 300 Sight Range 16 Terrain Scan Density 10 Armor Coverage 210 Evasion (%) 41 Recoil Reduction 2 Item Schematics ----------------- None Robot Schematics ------------------ None Fabricated ------------ Nothing Repaired ---------- Nothing Alien Tech Used ----------------- None Achievements -------------- None Challenges ------------ None Game ------ Seed DiametricDeepNanoactuators Manual? 0 Play Time 00:24:40 Cumulative 287.8 hours Start 2025.06.08 @ 03:27:09 End 2025.06.08 @ 03:51:17 Sessions 1 Manual Loads 0 Difficulty Rogue Special Mode None Game No. 146 Rogue 146 Adventurer 0 Explorer 0 Win Type - Total 1 Types 0/0/0/0/1/0/0/0/0/0 Lore% 73 Gallery% 75 Achievement% 64 Wizard Run 0 Options --------- Layout 0 ASCII 0 Keyboard 0 Movement Mouse Keybinds 0 Fullscreen 1 Font 24/Smallcaps Map View 183x50 Zoom Use 0% Tactical HUD 1 Map Filters NONE Filters NONE Steam 0 RUN: e66d2ceb-9ac7-4f0c-a71e-4d1aaad33f06